fUSD/lending_fUSD_20240217
["ID","MTS","AMOUNT","RATE_DAILY","PERIOD"]
[314294792,1708161047954,-500.0,0.00049315,60]
[314294794,1708161047964,-500.0,0.00049315,60]
[314294796,1708161047973,-2830.79,0.00049315,60]
[314294798,1708161047983,-1347.86,0.00049315,60]
[314294800,1708161047992,-500.0,0.00049315,60]
[314294802,1708161048002,-515.27704809,0.00049315,60]
[314294804,1708161048011,-500.0,0.00049315,60]
[314294806,1708161048021,-1283.95,0.00049315,60]
[314294808,1708161048031,-4644.83,0.00049315,60]
[314294810,1708161048040,-518.56180245,0.00049315,60]
[314294812,1708161048049,-302.05426186,0.00049315,60]
[314294814,1708161048058,-229.83610695,0.00049315,60]
[314294816,1708161048067,-500.0,0.00049315,60]
[314294818,1708161048076,-575.31813835,0.00049315,60]
[314294820,1708161048085,-500.0,0.00049315,60]
[314294822,1708161048095,-500.0,0.00049315,60]
[314294824,1708161048104,-793.13,0.00049315,60]
[314294826,1708161048113,-500.0,0.00049315,60]
[314294828,1708161048122,-424.19534597,0.00049315,60]
[314294830,1708161048131,-500.0,0.00049315,60]
[314294832,1708161048140,-500.0,0.00049315,60]
[314294834,1708161048149,-500.0,0.00049315,60]
[314294836,1708161048158,-500.0,0.00049315,60]
[314294838,1708161048168,-500.0,0.00049315,60]
[314294840,1708161048177,-603.73881311,0.00049315,60]
[314294842,1708161048187,-500.0,0.00049315,60]
[314294844,1708161048196,-584.92010592,0.00049315,60]
[314294846,1708161048205,-500.0,0.00049315,60]
[314294848,1708161048214,-500.0,0.00049315,60]
[314294850,1708161048223,-500.0,0.00049315,60]
[314294853,1708161048233,-458.57882539,0.00049315,60]
[314294855,1708161048242,-500.0,0.00049315,60]
[314294856,1708161048252,-1438.01,0.00049315,60]
[314294858,1708161048261,-500.0,0.00049315,60]
[314294861,1708161048272,-590.34257876,0.00049315,60]
[314294863,1708161048281,-2910.47,0.00049315,60]
[314294865,1708161048291,-500.0,0.00049315,60]
[314294866,1708161048300,-500.0,0.00049315,60]
[314294868,1708161048310,-500.0,0.00049315,60]
[314294870,1708161048319,-500.0,0.00049315,60]
[314294872,1708161048328,-500.0,0.00049315,60]
[314294874,1708161048338,-500.0,0.00049315,60]
[314294876,1708161048347,-500.0,0.00049315,60]
[314294879,1708161048357,-532.02999864,0.00049315,60]
[314294880,1708161048366,-500.0,0.00049315,60]
[314294882,1708161048375,-500.0,0.00049315,60]
[314294884,1708161048384,-509.19477868,0.00049315,60]
[314294886,1708161048393,-500.0,0.00049315,60]
[314294888,1708161048402,-577.62913496,0.00049315,60]
[314294890,1708161048411,-500.0,0.00049315,60]
[314294892,1708161048420,-500.0,0.00049315,60]
[314294895,1708161048430,-1068.24,0.00049315,14]
[314294897,1708161048440,-500.0,0.00049315,60]
[314294899,1708161048450,-500.0,0.00049315,60]
[314294901,1708161048459,-557.08115132,0.00049315,60]
[314294903,1708161048468,-548.21,0.00049315,60]
[314294904,1708161048477,-521.3641745,0.00049315,60]
[314294906,1708161048487,-500.0,0.00049315,60]
[314294909,1708161048496,-500.0,0.00049315,60]
[314294911,1708161048506,-579.65110196,0.00049315,60]
[314294912,1708161048515,-513.5759273,0.00049315,60]
[314294915,1708161048525,-500.0,0.00049315,60]
[314294917,1708161048536,-500.0,0.00049315,60]
[314294919,1708161048545,-500.0,0.00049315,60]
[314294921,1708161048554,-1670.98,0.00049315,60]
[314294923,1708161048563,-500.0,0.00049315,60]
[314294925,1708161048572,-500.0,0.00049315,60]
[314294927,1708161048582,-695.79,0.00049315,60]
[314294929,1708161048592,-500.0,0.00049315,60]
[314294931,1708161048601,-179.38634,0.00049315,60]
[314294933,1708161048610,-500.0,0.00049315,60]
[314294935,1708161048619,-500.0,0.00049315,60]
[314294937,1708161048628,-500.0,0.00049315,60]
[314294939,1708161048637,-792.89,0.00049315,60]
[314294941,1708161048646,-1476.07,0.00049315,60]
[314294943,1708161048655,-500.0,0.00049315,60]
[314294945,1708161048664,-500.0,0.00049315,60]
[314294947,1708161048673,-500.0,0.00049315,60]
[314294949,1708161048682,-538.82814425,0.00049315,60]
[314294951,1708161048691,-500.0,0.00049315,60]
[314294953,1708161048700,-500.0,0.00049315,60]
[314294955,1708161048709,-500.0,0.00049315,60]
[314294957,1708161048718,-500.0,0.00049315,60]
[314294959,1708161048727,-500.0,0.00049315,60]
[314294961,1708161048736,-500.0,0.00049315,60]
[314294963,1708161048745,-500.0,0.00049315,60]
[314294965,1708161048754,-500.0,0.00049315,60]
[314294967,1708161048763,-589.67267449,0.00049315,60]
[314294969,1708161048773,-500.0,0.00049315,60]
[314294972,1708161048793,-500.0,0.00049315,60]
[314294974,1708161048803,-836.72,0.00049315,60]
[314294976,1708161048812,-1928.92,0.00049315,60]
[314294978,1708161048821,-500.0,0.00049315,60]
[314294980,1708161048832,-500.0,0.00049315,60]
[314294982,1708161048841,-500.0,0.00049315,60]
[314294984,1708161048850,-500.0,0.00049315,60]
[314294986,1708161048861,-500.0,0.00049315,60]
[314294988,1708161048872,-500.0,0.00049315,60]
[314294990,1708161048882,-500.0,0.00049315,60]
[314294992,1708161048892,-500.0,0.00049315,60]
[314294994,1708161048902,-1000.0,0.00049315,7]
[314294995,1708161048913,-500.0,0.00049315,60]
[314294996,1708161048922,-500.0,0.00049315,60]
[314294997,1708161048931,-500.0,0.00049315,60]
[314294998,1708161048941,-500.0,0.00049315,60]
[314294999,1708161048950,-437.39616331,0.00049315,60]
[314295000,1708161048961,-240.20627516,0.00049315,60]
[314295001,1708161048971,-500.0,0.00049315,60]
[314295002,1708161048980,-500.0,0.00049315,60]
[314295004,1708161048989,-500.0,0.00049315,60]
[314295005,1708161048999,-500.0,0.00049315,60]
[314295006,1708161049008,-500.0,0.00049315,60]
[314295007,1708161049020,-545.70110424,0.00049315,60]
[314295008,1708161049029,-1019.43,0.00049315,60]
[314295009,1708161049039,-538.14805902,0.00049315,60]
[314295010,1708161049048,-500.0,0.00049315,60]
[314295011,1708161049057,-500.0,0.00049315,60]
[314295012,1708161049067,-500.0,0.00049315,60]
[314295013,1708161049076,-612.61,0.00049315,60]
[314295014,1708161049085,-504.72631277,0.00049315,5]
[314295015,1708161049094,-1766.39,0.00049315,60]
[314295016,1708161049103,-500.0,0.00049315,60]
[314295017,1708161049113,-500.0,0.00049315,60]
[314295018,1708161049123,-500.0,0.00049315,60]
[314295019,1708161049132,-526.17916288,0.00049315,60]
[314295020,1708161049142,-509.69932775,0.00049315,60]
[314295021,1708161049151,-1027.9,0.00049315,60]
[314295022,1708161049161,-570.48,0.00049315,60]
[314295023,1708161049171,-500.0,0.00049315,60]
[314295024,1708161049180,-543.65870553,0.00049315,60]
[314295026,1708161049190,-1285.81,0.00049315,60]
[314295028,1708161049200,-1042.06,0.00049315,60]
[314295030,1708161049209,-500.0,0.00049315,60]
[314295031,1708161049218,-624.32200642,0.00049315,60]
[314295032,1708161049227,-534.55759218,0.00049315,60]
[314295033,1708161049236,-500.0,0.00049315,60]
[314295034,1708161049246,-500.0,0.00049315,60]
[314295035,1708161049255,-500.0,0.00049315,60]
[314295036,1708161049264,-534.08277317,0.00049315,60]
[314295037,1708161049275,-500.0,0.00049315,60]
[314295038,1708161049285,-676.06,0.00049315,60]
[314295039,1708161049294,-564.38431962,0.00049315,60]
[314295040,1708161049303,-500.0,0.00049315,60]
[314295041,1708161049316,-500.0,0.00049315,60]
[314295042,1708161049325,-500.0,0.00049315,60]
[314295043,1708161049335,-636.2,0.00049315,60]
[314295044,1708161049345,-464.64071643,0.00049315,2]
[314295045,1708161049354,-477.79030947,0.00049315,60]
[314295046,1708161049364,-500.0,0.00049315,60]
[314295047,1708161049374,-501.63413972,0.00049315,2]
[314295048,1708161049384,-500.0,0.00049315,60]
[314295049,1708161049394,-500.0,0.00049315,60]
[314295050,1708161049403,-500.0,0.00049315,60]
[314295051,1708161049413,-566.11653482,0.00049315,60]
[314295052,1708161049422,-500.0,0.00049315,60]
[314295053,1708161049432,-951.44,0.00049315,60]
[314295054,1708161049440,-500.0,0.00049315,60]
[314295055,1708161049450,-10594.44,0.00049315,60]
[314295056,1708161049460,-500.0,0.00049315,2]
[314295057,1708161049470,-500.0,0.00049315,60]
[314295058,1708161049479,-500.0,0.00049315,60]
[314295059,1708161049489,-391.01375888,0.00049315,60]
[314295060,1708161049498,-500.0,0.00049315,60]
[314295061,1708161049507,-500.0,0.00049315,60]
[314295062,1708161049517,-500.0,0.00049315,2]
[314295063,1708161049526,-500.0,0.00049315,2]
[314295064,1708161049536,-636.2199776,0.00049315,2]
[314295065,1708161049545,-540.71057429,0.00049315,60]
[314295066,1708161049555,-500.0,0.00049315,60]
[314295067,1708161049564,-500.0,0.00049315,60]
[314295068,1708161049574,-500.0,0.00049315,60]
[314295069,1708161049583,-500.0,0.00049315,60]
[314295070,1708161049592,-500.0,0.00049315,60]
[314295071,1708161049601,-500.0,0.00049315,60]
[314295072,1708161049611,-341.19224171,0.00049315,60]
[314295073,1708161049620,-500.0,0.00049315,60]
[314295074,1708161049630,-1367.42474932,0.00049344,2]
[314295075,1708161049639,-25997.55481538,0.0004936,2]
[314295076,1708161049648,-200.0,0.00049376,30]
[314295077,1708161049657,-197.021777,0.00049448,96]
[314295078,1708161049666,-271.39,0.00049534,2]
[314295079,1708161049675,-36755.870826,0.00049539,2]
[314295080,1708161049684,-1203.18587732,0.0004956,2]
[314295081,1708161049694,-592.97,0.00049564,120]
[314295082,1708161049703,-500.0,0.00049589,60]
[314295083,1708161049713,-574.91,0.00049589,60]
[314295084,1708161049722,-1116.16242842,0.00049589,2]
[314295085,1708161049731,-500.0,0.00049589,60]
[314295086,1708161049740,-500.0,0.00049589,60]
[314295087,1708161049750,-500.0,0.00049589,60]
[314295088,1708161049760,-179.68230182,0.00049589,60]
[314295089,1708161049772,-500.0,0.00049589,60]
[314295090,1708161049782,-452.52043087,0.00049589,60]
[314295091,1708161049791,-500.0,0.00049589,30]
[314295092,1708161049800,-500.0,0.00049589,2]
[314295093,1708161049809,-500.0,0.00049589,2]
[314295094,1708161049818,-500.0,0.00049589,60]
[314295095,1708161049826,-500.0,0.00049589,60]
[314295096,1708161049835,-429.34883856,0.00049589,60]
[314295097,1708161049845,-186.82793851,0.00049589,60]
[314295098,1708161049854,-526.79084701,0.00049589,60]
[314295099,1708161049865,-500.0,0.00049589,60]
[314295100,1708161049879,-500.0,0.00049589,60]
[314295101,1708161049889,-535.7,0.00049589,60]
[314295102,1708161049899,-500.0,0.00049589,2]
[314295103,1708161049910,-500.0,0.00049589,60]
[314295104,1708161049920,-500.0,0.00049589,60]
[314295105,1708161049930,-500.0,0.00049589,60]
[314295106,1708161049940,-500.0,0.00049589,60]
[314295107,1708161049951,-500.0,0.00049589,60]
[314295108,1708161049962,-581.63109471,0.00049589,2]
[314295109,1708161049973,-500.0,0.00049589,60]
[314295110,1708161049983,-500.0,0.00049589,60]
[314295111,1708161049993,-500.0,0.00049589,60]
[314295112,1708161050003,-500.0,0.00049589,60]
[314295113,1708161050014,-558.07570171,0.00049589,60]
[314295114,1708161050031,-500.0,0.00049589,2]
[314295115,1708161050041,-311.40279987,0.00049589,60]
[314295116,1708161050050,-500.0,0.00049589,60]
[314295117,1708161050060,-500.0,0.00049589,60]
[314295118,1708161050070,-599.78706399,0.00049589,60]
[314295119,1708161050079,-563.05,0.00049589,2]
[314295120,1708161050088,-500.0,0.00049589,60]
[314295121,1708161050098,-500.0,0.00049589,60]
[314295122,1708161050107,-500.0,0.00049589,60]
[314295123,1708161050117,-500.0,0.00049589,60]
[314295124,1708161050126,-500.0,0.00049589,60]
[314295125,1708161050135,-500.0,0.00049589,60]
[314295126,1708161050146,-500.0,0.00049589,60]
[314295127,1708161050156,-500.0,0.00049589,60]
[314295128,1708161050165,-500.0,0.00049589,60]
[314295129,1708161050176,-500.0,0.00049589,60]
[314295130,1708161050185,-500.0,0.00049589,60]
[314295131,1708161050194,-500.0,0.00049589,60]
[314295132,1708161050204,-500.0,0.00049589,60]
[314295133,1708161050213,-500.0,0.00049589,60]
[314295134,1708161050223,-500.0,0.00049589,60]
[314295135,1708161050232,-500.0,0.00049589,60]
[314295136,1708161050242,-500.0,0.00049589,60]
[314295137,1708161050251,-313.49798344,0.00049589,60]
[314295138,1708161050260,-500.0,0.00049589,60]
[314295139,1708161050273,-500.0,0.00049589,7]
[314295140,1708161050283,-500.0,0.00049589,60]
[314295141,1708161050292,-500.0,0.00049589,60]
[314295142,1708161050301,-516.7,0.00049589,60]
[314295143,1708161050310,-227.33699963,0.00049589,60]
[314295144,1708161050320,-500.0,0.00049589,60]
[314295145,1708161050329,-500.0,0.00049589,60]
[314295146,1708161050339,-500.0,0.00049589,2]
[314295147,1708161050349,-500.0,0.00049589,60]
[314295148,1708161050358,-500.0,0.00049589,60]
[314295149,1708161050367,-500.0,0.00049589,60]
[314295150,1708161050521,-500.0,0.00049589,60]
[314295151,1708161050530,-500.0,0.00049589,60]
[314295152,1708161050539,-500.0,0.00049589,60]
[314295153,1708161050549,-500.0,0.00049589,60]
[314295154,1708161050558,-500.0,0.00049589,60]
[314295155,1708161050567,-1007.92,0.00049589,2]
[314295156,1708161050576,-327.26751175,0.00049589,60]
[314295157,1708161050585,-500.0,0.00049589,60]
[314295158,1708161050595,-500.0,0.00049589,60]
[314295159,1708161050604,-500.0,0.00049589,60]
[314295160,1708161050614,-501.21987151,0.00049589,7]
[314295161,1708161050623,-500.0,0.00049589,60]
[314295162,1708161050633,-500.0,0.00049589,60]
[314295163,1708161050642,-500.0,0.00049589,60]
[314295164,1708161050651,-500.0,0.00049589,60]
[314295165,1708161050661,-500.0,0.00049589,60]
[314295166,1708161050671,-500.0,0.00049589,60]
[314295167,1708161050681,-500.0,0.00049589,60]
[314295168,1708161050690,-500.0,0.00049589,60]
[314295169,1708161050699,-631.4077524,0.00049589,60]
[314295170,1708161050708,-500.0,0.00049589,60]
[314295171,1708161050718,-500.0,0.00049589,60]
[314295172,1708161050727,-500.0,0.00049589,60]
[314295173,1708161050736,-500.0,0.00049589,60]
[314295174,1708161050745,-500.0,0.00049589,60]
[314295175,1708161050755,-500.0,0.00049589,60]
[314295176,1708161050764,-500.0,0.00049589,60]
[314295177,1708161050775,-150.0,0.00049589,60]
[314295178,1708161050783,-575.34,0.00049589,60]
[314295179,1708161050793,-500.0,0.00049589,60]
[314295180,1708161050802,-500.0,0.00049589,60]
[314295181,1708161050811,-500.0,0.00049589,60]
[314295182,1708161050820,-500.0,0.00049589,60]
[314295183,1708161050829,-500.0,0.00049589,60]
[314295184,1708161050838,-500.0,0.00049589,60]
[314295185,1708161050847,-500.0,0.00049589,60]
[314295186,1708161050856,-500.0,0.00049589,60]
[314295187,1708161050869,-608.50881038,0.00049589,60]
[314295188,1708161050878,-500.0,0.00049589,60]
[314295189,1708161050887,-500.0,0.00049589,60]
[314295190,1708161050896,-500.0,0.00049589,2]
[314295191,1708161050905,-500.0,0.00049589,60]
[314295192,1708161050914,-500.0,0.00049589,60]
[314295193,1708161050924,-500.0,0.00049589,60]
[314295194,1708161050933,-500.0,0.00049589,60]
[314295195,1708161050943,-500.0,0.00049589,60]
[314295196,1708161050954,-500.0,0.00049589,60]
[314295197,1708161050963,-500.0,0.00049589,60]
[314295198,1708161050972,-323.46401023,0.00049589,60]
[314295199,1708161050982,-500.0,0.00049589,60]
[314295200,1708161050991,-500.0,0.00049589,60]
[314295201,1708161051000,-500.0,0.00049589,60]
[314295202,1708161051010,-325.65756155,0.00049589,60]
[314295203,1708161051020,-500.0,0.00049589,60]
[314295204,1708161051029,-500.0,0.00049589,60]
[314295205,1708161051038,-500.0,0.00049589,60]
[314295206,1708161051048,-500.0,0.00049589,60]
[314295207,1708161051057,-500.0,0.00049589,60]
[314295208,1708161051066,-500.0,0.00049589,60]
[314295209,1708161051076,-500.0,0.00049589,60]
[314295210,1708161051085,-581.04406943,0.00049589,60]
[314295211,1708161051095,-500.0,0.00049589,60]
[314295212,1708161051104,-500.0,0.00049589,60]
[314295213,1708161051113,-500.0,0.00049589,60]
[314295214,1708161051122,-500.0,0.00049589,60]
[314295215,1708161051131,-500.0,0.00049589,60]
[314295216,1708161051141,-500.0,0.00049589,60]
[314295217,1708161051150,-500.0,0.00049589,60]
[314295218,1708161051159,-503.12,0.00049589,60]
[314295219,1708161051168,-500.0,0.00049589,60]
[314295220,1708161051177,-500.0,0.00049589,60]
[314295221,1708161051187,-177.36010307,0.00049589,60]
[314295222,1708161051196,-500.0,0.00049589,60]
[314295223,1708161051206,-500.0,0.00049589,60]
[314295224,1708161051215,-500.0,0.00049589,60]
[314295225,1708161051224,-609.88487753,0.00049589,60]
[314295226,1708161051233,-500.0,0.00049589,60]
[314295227,1708161051242,-741.18,0.00049589,60]
[314295228,1708161051251,-500.0,0.00049589,60]
[314295229,1708161051260,-500.0,0.00049589,60]
[314295230,1708161051272,-500.0,0.00049589,60]
[314295231,1708161051281,-500.0,0.00049589,60]
[314295232,1708161051291,-500.0,0.00049589,60]
[314295233,1708161051300,-500.0,0.00049589,7]
[314295234,1708161051309,-500.0,0.00049589,60]
[314295235,1708161051318,-500.0,0.00049589,60]
[314295236,1708161051327,-500.0,0.00049589,60]
[314295237,1708161051336,-500.0,0.00049589,60]
[314295238,1708161051346,-500.0,0.00049589,60]
[314295239,1708161051355,-500.0,0.00049589,60]
[314295240,1708161051364,-500.0,0.00049589,60]
[314295241,1708161051374,-500.0,0.00049589,60]
[314295242,1708161051383,-564.08599474,0.00049589,60]
[314295243,1708161051392,-500.0,0.00049589,60]
[314295244,1708161051401,-1045.89,0.00049589,60]
[314295245,1708161051411,-541.49,0.00049589,60]
[314295246,1708161051420,-500.0,0.00049589,60]
[314295247,1708161051429,-500.0,0.00049589,60]
[314295248,1708161051438,-500.0,0.00049589,60]
[314295249,1708161051448,-500.0,0.00049589,60]
[314295250,1708161051458,-500.0,0.00049589,60]
[314295251,1708161051467,-500.0,0.00049589,60]
[314295252,1708161051476,-561.32,0.00049589,60]
[314295253,1708161051486,-223.04622957,0.00049589,60]
[314295254,1708161051495,-2830.79,0.00049589,60]
[314295255,1708161051504,-500.0,0.00049589,60]
[314295256,1708161051513,-1347.86,0.00049589,60]
[314295257,1708161051525,-500.0,0.00049589,60]
[314295258,1708161051535,-500.0,0.00049589,60]
[314295259,1708161051544,-1283.95,0.00049589,60]
[314295260,1708161051554,-4644.83,0.00049589,60]
[314295261,1708161051563,-500.0,0.00049589,60]
[314295262,1708161051572,-500.0,0.00049589,60]
[314295263,1708161051581,-500.0,0.00049589,60]
[314295264,1708161051590,-793.13,0.00049589,60]
[314295265,1708161051599,-500.0,0.00049589,60]
[314295266,1708161051608,-500.0,0.00049589,60]
[314295267,1708161051617,-3000.0,0.00049589,47]
[314295268,1708161051627,-500.0,0.00049589,60]
[314295269,1708161051636,-500.0,0.00049589,60]
[314295270,1708161051644,-500.0,0.00049589,60]
[314295271,1708161051653,-500.0,0.00049589,60]
[314295272,1708161051663,-500.0,0.00049589,60]
[314295273,1708161051671,-500.0,0.00049589,60]
[314295274,1708161051680,-500.0,0.00049589,60]
[314295275,1708161051690,-500.0,0.00049589,60]
[314295276,1708161051699,-500.0,0.00049589,60]
[314295277,1708161051708,-1438.01,0.00049589,60]
[314295278,1708161051717,-500.0,0.00049589,60]
[314295279,1708161051727,-2910.47,0.00049589,60]
[314295280,1708161051735,-500.0,0.00049589,60]
[314295281,1708161051744,-500.0,0.00049589,60]
[314295282,1708161051753,-500.0,0.00049589,60]
[314295283,1708161051762,-500.0,0.00049589,60]
[314295284,1708161051773,-346.19466738,0.00049589,60]
[314295285,1708161051782,-396.3972044,0.00049589,60]
[314295286,1708161051791,-500.0,0.00049589,60]
[314295287,1708161051800,-500.0,0.00049589,60]
[314295288,1708161051809,-500.0,0.00049589,60]
[314295289,1708161051818,-500.0,0.00049589,60]
[314295290,1708161051827,-500.0,0.00049589,60]
[314295291,1708161051836,-500.0,0.00049589,60]
[314295292,1708161051846,-1068.24,0.00049589,14]
[314295293,1708161051855,-500.0,0.00049589,60]
[314295294,1708161051865,-500.0,0.00049589,60]
[314295295,1708161051877,-548.21,0.00049589,60]
[314295296,1708161051886,-500.0,0.00049589,60]
[314295297,1708161051896,-500.0,0.00049589,60]
[314295298,1708161051906,-500.0,0.00049589,60]
[314295299,1708161051915,-500.0,0.00049589,60]
[314295300,1708161051924,-500.0,0.00049589,60]
[314295301,1708161051934,-1670.98,0.00049589,60]
[314295302,1708161051943,-500.0,0.00049589,60]
[314295303,1708161051954,-500.0,0.00049589,60]
[314295304,1708161051964,-695.79,0.00049589,60]
[314295305,1708161051973,-500.0,0.00049589,60]
[314295306,1708161051982,-500.0,0.00049589,60]
[314295307,1708161051992,-500.0,0.00049589,60]
[314295308,1708161052001,-500.0,0.00049589,60]
[314295309,1708161052010,-792.89,0.00049589,60]
[314295310,1708161052019,-1476.07,0.00049589,60]
[314295311,1708161052028,-500.0,0.00049589,60]
[314295312,1708161052038,-500.0,0.00049589,60]
[314295313,1708161052047,-500.0,0.00049589,60]
[314295314,1708161052056,-500.0,0.00049589,60]
[314295315,1708161052065,-500.0,0.00049589,60]
[314295316,1708161052074,-500.0,0.00049589,60]
[314295317,1708161052083,-500.0,0.00049589,60]
[314295318,1708161052092,-500.0,0.00049589,60]
[314295319,1708161052101,-500.0,0.00049589,60]
[314295320,1708161052111,-500.0,0.00049589,60]
[314295321,1708161052120,-500.0,0.00049589,60]
[314295322,1708161052130,-500.0,0.00049589,60]
[314295323,1708161052139,-500.0,0.00049589,60]
[314295324,1708161052148,-836.72,0.00049589,60]
[314295325,1708161052157,-1928.92,0.00049589,60]
[314295326,1708161052166,-500.0,0.00049589,60]
[314295327,1708161052175,-500.0,0.00049589,60]
[314295328,1708161052184,-500.0,0.00049589,60]
[314295329,1708161052194,-500.0,0.00049589,60]
[314295330,1708161052203,-500.0,0.00049589,60]
[314295331,1708161052212,-500.0,0.00049589,60]
[314295332,1708161052221,-500.0,0.00049589,60]
[314295333,1708161052230,-424.78890762,0.00049589,60]
[314295334,1708161052239,-1000.0,0.00049589,7]
[314295335,1708161052248,-500.0,0.00049589,60]
[314295336,1708161052257,-500.0,0.00049589,60]
[314295337,1708161052268,-500.0,0.00049589,60]
[314295338,1708161052276,-500.0,0.00049589,60]
[314295339,1708161052285,-500.0,0.00049589,60]
[314295340,1708161052295,-163.50291979,0.00049589,60]
[314295341,1708161052304,-500.0,0.00049589,60]
[314295342,1708161052313,-500.0,0.00049589,60]
[314295343,1708161052322,-500.0,0.00049589,60]
[314295344,1708161052331,-1019.43,0.00049589,60]
[314295345,1708161052340,-500.0,0.00049589,60]
[314295346,1708161052350,-500.0,0.00049589,60]
[314295347,1708161052358,-500.0,0.00049589,60]
[314295348,1708161052367,-612.61,0.00049589,60]
[314295349,1708161052376,-1766.39,0.00049589,60]
[314295350,1708161052385,-500.0,0.00049589,60]
[314295351,1708161052394,-500.0,0.00049589,60]
[314295352,1708161052403,-1027.9,0.00049589,60]
[314295353,1708161052412,-570.48,0.00049589,60]
[314295354,1708161052421,-500.0,0.00049589,60]
[314295355,1708161052430,-1285.81,0.00049589,60]
[314295356,1708161052439,-1042.06,0.00049589,60]
[314295357,1708161052449,-500.0,0.00049589,60]
[314295358,1708161052458,-500.0,0.00049589,60]
[314295359,1708161052467,-500.0,0.00049589,60]
[314295360,1708161052476,-500.0,0.00049589,60]
[314295361,1708161052486,-500.0,0.00049589,60]
[314295362,1708161052496,-676.06,0.00049589,60]
[314295363,1708161052505,-500.0,0.00049589,60]
[314295364,1708161052514,-205.91936027,0.00049589,60]
[314295365,1708161052523,-500.0,0.00049589,60]
[314295366,1708161052532,-636.2,0.00049589,60]
[314295367,1708161052541,-368.52222943,0.00049589,60]
[314295368,1708161052550,-500.0,0.00049589,60]
[314295369,1708161052559,-500.0,0.00049589,60]
[314295370,1708161052569,-500.0,0.00049589,60]
[314295371,1708161052578,-500.0,0.00049589,60]
[314295372,1708161052587,-951.44,0.00049589,60]
[314295373,1708161052596,-172.85561359,0.00049589,60]
[314295374,1708161052605,-10594.44,0.00049589,60]
[314295375,1708161052614,-500.0,0.00049589,2]
[314295376,1708161052623,-500.0,0.00049589,60]
[314295377,1708161052633,-500.0,0.00049589,60]
[314295378,1708161052643,-500.0,0.00049589,60]
[314295379,1708161052652,-500.0,0.00049589,60]
[314295380,1708161052661,-500.0,0.00049589,60]
[314295381,1708161052670,-500.0,0.00049589,60]
[314295382,1708161052679,-500.0,0.00049589,60]
[314295383,1708161052689,-500.0,0.00049589,60]
[314295384,1708161052698,-500.0,0.00049589,60]
[314295385,1708161052707,-500.0,0.00049589,60]
[314295386,1708161052716,-500.0,0.00049589,60]
[314295387,1708161052725,-18000.0,0.000496,30]
[314295388,1708161052734,-898.0,0.000496,30]
[314295389,1708161052743,-347.0,0.000496,30]
[314295390,1708161052752,-922.3,0.000496,30]
[314295391,1708161052761,-1000.0,0.000496,30]
[314295392,1708161052771,-266.16367082,0.00049604,12]
[314295393,1708161052780,-3504.26739857,0.00049626,5]
[314295394,1708161052790,-153.62677801,0.0004963,43]
[314295395,1708161052799,-432.0,0.00049634,30]
[314295396,1708161052809,-156.88,0.000497,35]
[314295397,1708161052818,-197.021777,0.00049748,96]